bitfinex-derivatives/quotes_BTCF0:USTF0_20210108
["timestamp","ask_amount","ask_price","bid_price","bid_amount"]
[1610074807390,4.5222,37108.0,37084.0,0.00022067]
[1610074807790,4.5222,37108.0,37084.0,0.00022073]
[1610074807989,0.25845608,37109.0,37041.0,0.05328841]
[1610074808191,4.5084,37093.0,37041.0,0.18942841]
[1610074808392,4.60532,37093.0,37041.0,0.13614]
[1610074808592,0.13632608,37042.0,37041.0,0.13614]
[1610074809190,0.13632608,37042.0,37041.0,0.13636085]
[1610074809793,0.13632608,37042.0,37041.0,0.13636087]
[1610074810993,0.11091,37061.0,37041.0,0.13636087]
[1610074811194,4.473,37064.0,37041.0,0.13636087]
[1610074811393,0.10108,37071.0,37041.0,0.13636087]
[1610074811596,0.09692,37093.0,37042.0,0.0002209]
[1610074812393,4.3048,37107.0,37042.0,0.0002209]
[1610074812594,4.3048,37107.0,37075.0,0.13632608]
[1610074812795,0.12213,37109.0,37075.0,0.25850608]
[1610074812994,3.6965,37118.0,37075.0,0.12218]
[1610074813195,3.6965,37118.0,37076.0,0.0002208]
[1610074813595,3.6965,37118.0,37076.0,0.00022077]
[1610074814596,0.13632608,37079.0,37076.0,0.00022077]
[1610074815796,0.09132,37102.0,37076.0,0.00022077]
[1610074815996,0.00818936,37117.0,37076.0,0.00022077]
[1610074816197,3.6965,37118.0,37076.0,0.00022077]
[1610074816396,0.00818846,37122.0,37076.0,0.00022077]
[1610074816597,0.13632608,37097.0,37086.0,0.13632608]
[1610074817199,0.09576,37116.0,37087.0,0.1062507]
[1610074817599,0.09576,37116.0,37088.0,0.00022068]
[1610074817801,0.0244528,37137.0,37088.0,0.00022068]
[1610074818201,0.02445262,37142.0,37088.0,0.00022068]
[1610074818601,0.13632608,37143.0,37137.0,0.13632608]
[1610074818801,0.02446603,37146.0,37137.0,0.13632608]
[1610074819001,0.00820799,37153.0,37138.0,0.00022061]
[1610074819404,0.00820848,37158.0,37138.0,0.00022061]
[1610074819802,0.02446028,37170.0,37138.0,0.00022061]
[1610074820202,0.00820585,37177.0,37138.0,0.00022061]
[1610074820703,0.0082076,37182.0,37138.0,0.00022061]
[1610074821301,0.57952101,37185.0,37138.0,0.00022061]
[1610074821302,0.00820571,37184.0,37138.0,0.00022061]
[1610074821901,0.57938736,37188.0,37138.0,0.00022061]
[1610074821902,0.00820934,37187.0,37146.0,3.3052]
[1610074822103,0.00820934,37187.0,37146.0,3.39157]
[1610074822303,0.00820827,37195.0,37147.0,0.00022038]
[1610074822503,0.00820827,37195.0,37153.0,3.2891]
[1610074822703,0.00820869,37201.0,37194.0,0.13632608]
[1610074823106,0.00820786,37205.0,37195.0,0.0002203]
[1610074823504,0.00820171,37209.0,37195.0,0.0002203]
[1610074823904,0.0082038,37214.0,37195.0,0.0002203]
[1610074824307,0.00820248,37224.0,37195.0,0.0002203]
[1610074824708,0.00819448,37232.0,37223.0,0.13632608]
[1610074824906,0.00819448,37232.0,37223.0,0.25107608]
[1610074825107,0.00819429,37235.0,37223.0,0.25107608]
[1610074825307,0.00819429,37235.0,37223.0,0.11475]
[1610074825508,0.02439185,37238.0,37223.0,0.11475]
[1610074825908,0.0081835,37239.0,37223.0,0.11475]
[1610074826107,0.0081835,37239.0,37224.0,0.00022015]
[1610074826308,0.00818359,37238.0,37223.0,0.11475]
[1610074826511,0.00818359,37238.0,37224.0,0.00022013]
[1610074826709,0.80247346,37248.0,37236.0,0.13632608]
[1610074826710,0.13632608,37237.0,37236.0,0.13632608]
[1610074827210,0.00817359,37246.0,37236.0,0.13632608]
[1610074827408,0.00817229,37250.0,37236.0,0.22479608]
[1610074827809,0.70522025,37256.0,37236.0,0.22479608]
[1610074827810,0.02431872,37255.0,37236.0,0.22479608]
[1610074828211,0.0081586,37258.0,37236.0,0.22479608]
[1610074828610,0.59236162,37265.0,37236.0,0.22479608]
[1610074828611,0.02427452,37262.0,37236.0,0.22479608]
[1610074828810,0.13632608,37257.0,37253.0,0.13632608]
[1610074829010,0.13632608,37257.0,37236.0,0.08847]
[1610074830715,0.00812046,37267.0,37252.0,0.13632608]
[1610074830915,0.00812046,37267.0,37252.0,0.26612608]
[1610074831116,0.00812036,37269.0,37252.0,0.26448097]
[1610074831315,0.00811073,37270.0,37252.0,0.26448097]
[1610074831716,0.008108,37272.0,37252.0,0.26448097]
[1610074832117,0.00810575,37281.0,37252.0,0.26448097]
[1610074832718,0.13632608,37285.0,37280.0,0.13632608]
[1610074832918,0.13632608,37285.0,37280.0,0.24692608]
[1610074833122,0.00808962,37296.0,37280.0,0.24692608]
[1610074833521,0.0080754,37300.0,37280.0,0.24692608]
[1610074833921,0.57018632,37304.0,37280.0,0.24692608]
[1610074833922,0.0080747,37303.0,37280.0,0.24692608]
[1610074834323,0.49113195,37304.0,37280.0,0.24692608]
[1610074834324,0.00807439,37304.0,37280.0,0.24692608]
[1610074834624,0.00805989,37306.0,37280.0,0.24692608]
[1610074834826,0.00805989,37306.0,37292.0,0.22186608]
[1610074835024,0.00805956,37308.0,37292.0,0.22186608]
[1610074835624,0.00804546,37313.0,37292.0,0.22186608]
[1610074836025,0.00804374,37322.0,37292.0,0.22186608]
[1610074836425,0.02396811,37332.0,37292.0,0.22186608]
[1610074836625,0.02396811,37332.0,37292.0,0.08554]
[1610074836827,0.13632608,37309.0,37292.0,0.08554]
[1610074837428,0.00802354,37330.0,37292.0,0.08554]
[1610074837826,0.00800691,37334.0,37292.0,0.08554]
[1610074838028,0.13483,37336.0,37292.0,0.08554]
[1610074838227,0.00800665,37337.0,37292.0,0.08554]
[1610074838427,0.00800665,37337.0,37297.0,3.9713]
[1610074838628,0.02380717,37347.0,37297.0,3.9713]
[1610074838827,0.02380717,37347.0,37336.0,0.13632608]
[1610074839027,0.00798672,37355.0,37336.0,0.13632608]
[1610074839428,0.00796393,37370.0,37336.0,0.13632608]
[1610074839828,0.00795858,37380.0,37336.0,0.13632608]
[1610074840329,0.6867785,37387.0,37336.0,0.13632608]
[1610074840330,0.00795735,37388.0,37336.0,0.13632608]
[1610074840728,0.00795735,37388.0,37334.0,0.10297]
[1610074840729,0.13632608,37356.0,37355.0,0.13632608]
[1610074841130,0.13632608,37356.0,37355.0,0.13468512]
[1610074841331,0.13632608,37356.0,37334.0,0.10297]
[1610074841532,0.08968,37378.0,37334.0,0.10297]
[1610074842334,0.00790861,37397.0,37334.0,0.10297]
[1610074842733,0.01566215,37398.0,37334.0,0.10297]
[1610074842734,0.13632608,37398.0,37391.0,0.13632608]
[1610074843136,0.13632608,37398.0,37379.0,0.131]
[1610074843736,0.25715608,37398.0,37379.0,0.131]
[1610074844037,0.25715608,37398.0,37335.0,0.5571]
[1610074844837,0.13632608,37376.0,37375.0,0.13632608]
[1610074845237,0.10893,37389.0,37375.0,0.13632608]
[1610074845437,0.10893,37389.0,37365.0,0.10998]
[1610074846840,0.10893,37389.0,37382.0,0.13632608]
[1610074847039,0.10893,37389.0,37365.0,0.10998]
[1610074847439,0.12083,37398.0,37365.0,0.10998]
[1610074847641,0.12888,37406.0,37365.0,0.72568]
[1610074848239,0.00778767,37443.0,37365.0,0.72568]
[1610074848440,0.2698,37431.0,37365.0,0.72568]
[1610074848639,0.1569,37445.0,37365.0,0.72568]
[1610074848840,0.1569,37445.0,37380.0,0.13632608]
[1610074849039,0.1569,37445.0,37380.0,0.11971]
[1610074850040,0.00775456,37435.0,37380.0,0.11971]
[1610074850243,0.00775456,37435.0,37365.0,0.72568]
[1610074850244,0.09256456,37435.0,37365.0,0.10998]
[1610074850442,0.08481,37435.0,37336.0,0.2993]
[1610074850642,0.08481,37435.0,37365.0,3.1938]
[1610074850842,0.13632608,37397.0,37394.0,0.13632608]
[1610074851044,0.26698608,37397.0,37394.0,0.13632608]
[1610074851443,0.26698608,37397.0,37374.0,3.8443]
[1610074851642,0.26698608,37397.0,37365.0,0.11247]
[1610074852051,0.12474,37384.0,37365.0,0.11247]
[1610074852846,0.13632608,37375.0,37373.0,0.13632608]
[1610074853045,0.12474,37384.0,37373.0,0.13632608]
[1610074853444,0.12474,37384.0,37365.0,0.11247]
[1610074853445,0.12474,37384.0,37336.0,0.2993]
[1610074853644,0.12474,37384.0,37356.0,0.12584]
[1610074854045,3.4637,37375.0,37356.0,0.12584]
[1610074854745,0.13632608,37357.0,37356.0,0.12584]
[1610074855145,0.13632608,37357.0,37347.0,0.13632608]
[1610074856345,0.25515608,37357.0,37347.0,0.13632608]
[1610074856746,0.13632608,37349.0,37347.0,0.13632608]
[1610074856946,0.13632608,37349.0,37318.0,0.2844]
[1610074857145,0.13632608,37349.0,34000.0,2.0]
[1610074857146,0.13632608,37349.0,37190.0,1.5]
[1610074857345,0.23395608,37349.0,37293.0,0.2819]
[1610074857545,0.23395608,37349.0,37276.0,3.4037]
[1610074857747,0.23395608,37349.0,37293.0,0.00023408]
[1610074858146,0.09763,37349.0,37293.0,0.00023408]
[1610074858546,0.08899,37367.0,37293.0,0.00023408]
[1610074858746,0.10286,37376.0,37293.0,0.00023408]
[1610074858747,0.10286,37376.0,37366.0,0.13632608]
[1610074859148,4.4598,37422.0,37366.0,0.13632608]
[1610074859749,0.3195,37421.0,37359.0,0.11432]
[1610074860350,0.4764,37421.0,37359.0,0.11432]
[1610074860751,0.13632608,37360.0,37359.0,0.11432]
[1610074860951,0.13632608,37360.0,37352.0,0.13632608]
[1610074861150,0.13632608,37360.0,37316.0,3.7174]
[1610074861552,0.13632608,37360.0,37317.0,0.02115049]
[1610074861952,0.13632608,37360.0,37317.0,0.11100049]
[1610074862352,0.0914,37364.0,37318.0,0.000234]
[1610074862755,0.0914,37364.0,37363.0,0.13632608]
[1610074862954,0.0914,37364.0,37348.0,0.12795]
[1610074863256,0.0914,37364.0,37363.0,0.000234]
[1610074863454,0.0914,37364.0,37349.0,0.000234]
[1610074863854,0.000234,37355.0,37349.0,0.000234]
[1610074864055,0.115084,37355.0,37327.0,0.00023404]
[1610074864454,0.115084,37355.0,37318.0,0.00023404]
[1610074864860,0.115084,37355.0,37329.0,0.13632608]
[1610074865257,0.115084,37355.0,37330.0,0.00023407]
[1610074866857,0.115084,37355.0,37342.0,0.13632608]
[1610074867358,0.115084,37355.0,37343.0,0.00023403]
[1610074868860,0.115084,37355.0,37354.0,0.13632608]
[1610074869260,0.115084,37355.0,37354.0,0.13656011]
[1610074869860,3.992,37421.0,37354.0,0.13656011]
[1610074870261,3.992,37421.0,37355.0,0.00023396]
[1610074870861,3.992,37421.0,37379.0,0.13632608]
[1610074871263,3.6725,37421.0,37379.0,0.13632608]
[1610074871461,0.1569,37421.0,37380.0,0.00023392]
[1610074871862,0.4684,37438.0,37380.0,0.00023392]
[1610074872063,0.16466015,37445.0,37380.0,0.00023392]
[1610074872264,0.1569,37445.0,37380.0,0.00023392]
[1610074872864,0.1569,37445.0,37392.0,0.13632608]
[1610074873265,0.1569,37445.0,37393.0,0.00023382]
[1610074874068,0.26401,37445.0,37388.0,0.00023382]
[1610074874268,0.26401,37445.0,37379.0,0.1002]
[1610074874670,0.26401,37445.0,37389.0,0.00023381]
[1610074874868,0.13632608,37404.0,37399.0,0.13632608]
[1610074875069,0.25483608,37404.0,37399.0,0.13632608]
[1610074875269,0.11851,37404.0,37400.0,0.00023381]
[1610074876070,0.10711,37445.0,37400.0,0.00023381]
[1610074876872,0.13632608,37429.0,37421.0,0.13632608]
[1610074877073,0.25624608,37429.0,37421.0,0.13632608]
[1610074877472,0.11992,37429.0,37422.0,0.00023369]
[1610074878877,0.11992,37429.0,37428.0,0.13632608]
[1610074879075,0.13632608,37437.0,37428.0,0.13632608]
[1610074879276,0.10711,37445.0,37428.0,0.13655973]
[1610074879475,0.1569,37466.0,37429.0,0.00023365]
[1610074879876,0.00789834,37472.0,37429.0,0.00023365]
[1610074880279,0.00791459,37473.0,37429.0,0.00023365]
[1610074880678,0.00792671,37478.0,37429.0,0.00023365]
[1610074880877,0.13632608,37439.0,37433.0,0.13632608]
[1610074881077,0.12946,37452.0,37433.0,0.13632608]
[1610074881481,0.12946,37452.0,37434.0,0.00023353]
[1610074882279,0.02366109,37484.0,37434.0,0.00023353]
[1610074882481,0.00793892,37484.0,37434.0,0.00023353]
[1610074882880,0.13632608,37450.0,37447.0,0.13632608]
[1610074883080,0.13632608,37450.0,37434.0,0.00023353]
[1610074883281,0.13632608,37450.0,37448.0,0.00023346]
[1610074883680,0.13632608,37450.0,37436.0,0.11743]
[1610074883681,0.13632608,37450.0,37437.0,0.00023346]
[1610074884981,0.13632608,37443.0,37437.0,0.13655954]
[1610074885182,0.08964,37459.0,37437.0,0.13655954]
[1610074885381,0.08964,37459.0,37438.0,0.00023349]
[1610074886983,0.09729,37449.0,37437.0,0.00023349]
[1610074887184,0.09729,37449.0,37433.0,0.13632608]
[1610074887385,0.09729,37449.0,37434.0,0.00023349]
[1610074887985,0.08964,37459.0,37434.0,0.00023349]
[1610074888184,5.0,37529.0,37434.0,0.00023349]
[1610074888185,0.0079901,37484.0,37434.0,0.00023349]
[1610074888484,0.02382963,37488.0,37434.0,0.00023349]
[1610074888885,0.00799508,37489.0,37461.0,0.13632608]
[1610074889286,0.48630398,37499.0,37462.0,0.00023339]
[1610074889686,0.01584366,37498.0,37462.0,0.00023339]
[1610074889886,0.13410366,37498.0,37462.0,0.00023339]
[1610074890086,0.11826,37498.0,37461.0,0.13632608]
[1610074890287,0.11826,37498.0,37462.0,0.00023337]
[1610074890887,0.13632608,37463.0,37462.0,0.12887337]
[1610074891487,0.09103,37485.0,37462.0,0.12887337]
[1610074891888,0.09103,37485.0,37463.0,0.00023331]
[1610074892690,0.11826,37498.0,37463.0,0.00023331]
[1610074892892,0.11826,37498.0,37497.0,0.13632608]
[1610074893491,0.11826,37498.0,37497.0,0.13655925]
[1610074893691,0.48669993,37535.0,37497.0,0.13655925]
[1610074893891,0.0158446,37544.0,37497.0,0.13655925]
[1610074894091,0.0158446,37544.0,37498.0,0.00023315]
[1610074894493,0.01584034,37550.0,37498.0,0.00023315]
[1610074894893,0.47066197,37551.0,37492.0,0.11314]
[1610074894894,0.13632608,37546.0,37543.0,0.13632608]
[1610074895095,0.25268608,37546.0,37543.0,0.13632608]
[1610074895494,0.25268608,37546.0,37492.0,0.11314]
[1610074895693,0.25268608,37546.0,37503.0,3.4719]
[1610074895896,0.13632608,37546.0,37503.0,3.4719]
[1610074896095,0.09328,37554.0,37503.0,3.58534]
[1610074896897,0.01578284,37570.0,37552.0,0.13632608]
[1610074897099,0.50405632,37572.0,37552.0,0.13632608]
[1610074897295,0.50405632,37572.0,37541.0,0.10409]
[1610074897495,0.60668632,37572.0,37541.0,0.10409]
[1610074897695,0.00163324,37544.0,37541.0,0.10409]
[1610074897895,0.12199721,37572.0,37541.0,0.10409]
[1610074898095,0.12199721,37572.0,37503.0,0.11344]
[1610074898497,0.01574386,37571.0,37503.0,0.11344]
[1610074898798,0.58979249,37572.0,37503.0,0.11344]
[1610074898799,0.13774178,37572.0,37503.0,0.11344]
[1610074899002,0.13774178,37572.0,37531.0,0.13632608]
[1610074899202,0.12199721,37572.0,37531.0,0.13632608]
[1610074901002,0.12199721,37572.0,37543.0,0.13632608]
[1610074901201,0.12199721,37572.0,37530.0,0.10897]
[1610074901802,0.12199721,37572.0,37519.0,0.12514]
[1610074904504,0.12199721,37572.0,37516.0,4.1048]
[1610074904903,0.12199721,37572.0,37561.0,0.13632608]
[1610074906908,0.12199721,37572.0,37547.0,3.7149]
[1610074906909,0.12199721,37572.0,37565.0,0.13632608]
[1610074908808,0.12199721,37572.0,37543.0,0.09187]
[1610074909009,0.12199721,37572.0,37555.0,0.13632608]
[1610074909411,0.12199721,37572.0,37543.0,0.09187]
[1610074909613,0.12199721,37572.0,37529.0,4.032]
[1610074910211,0.12199721,37572.0,37530.0,0.00024189]
[1610074911010,0.12199721,37572.0,37547.0,0.13632608]
[1610074912213,0.12199721,37572.0,37548.0,0.00024181]
[1610074913015,0.12199721,37572.0,37569.0,0.13632608]
[1610074914015,0.01936721,37572.0,37569.0,0.13632608]
[1610074914215,0.0792,37611.0,37569.0,0.13632608]
[1610074914416,0.0805,37627.0,37569.0,0.13632608]
[1610074914820,0.0805,37627.0,37570.0,0.00024169]
[1610074915018,0.2949,37637.0,37606.0,0.13632608]
[1610074915217,0.1569,37644.0,37606.0,0.13632608]
[1610074915620,0.1569,37644.0,37570.0,0.13711]
[1610074915820,0.25476,37644.0,37570.0,0.13711]
[1610074916220,0.25476,37644.0,37571.0,0.00024166]
[1610074917020,0.25476,37644.0,37589.0,0.13632608]
[1610074917422,0.25476,37644.0,37590.0,0.00024162]
[1610074917820,0.25476,37644.0,37571.0,0.00024162]
[1610074918022,0.25476,37644.0,37604.0,0.1]
[1610074920124,0.25476,37644.0,37605.0,0.00024157]
[1610074920326,0.09786,37644.0,37605.0,0.00024157]
[1610074920925,0.0786,37646.0,37623.0,0.13632608]
[1610074921327,0.1569,37665.0,37623.0,0.13632608]
[1610074921526,0.1569,37665.0,37624.0,0.00024144]
[1610074921926,0.3195,37676.0,37624.0,0.00024144]
[1610074922430,0.0793,37660.0,37624.0,0.00024144]
[1610074923028,0.13632608,37625.0,37605.0,0.00024144]
[1610074923227,0.24667608,37625.0,37605.0,0.00024144]
[1610074925029,0.11035,37625.0,37606.0,0.13632608]
[1610074925430,0.11035,37625.0,37607.0,0.00024148]
[1610074926130,0.11035,37625.0,37605.0,0.00024148]
[1610074926536,0.11035,37625.0,37608.0,0.00024146]
[1610074926732,0.11035,37625.0,37605.0,0.00839581]
[1610074926932,0.11035,37625.0,37624.0,0.13632608]
[1610074927535,0.11035,37625.0,37624.0,0.13656748]
[1610074927734,0.3195,37676.0,37624.0,0.13656748]
[1610074927933,4.3397,37678.0,37624.0,0.13656748]
[1610074928134,0.1569,37678.0,37624.0,0.13656748]
[1610074928333,0.29571235,37687.0,37624.0,0.13656748]
[1610074928334,0.2803,37687.0,37625.0,0.00024128]
[1610074928534,0.01540856,37693.0,37625.0,0.00024128]
[1610074928736,0.1569,37695.0,37625.0,0.00024128]
[1610074928935,0.13632608,37661.0,37647.0,0.13632608]
[1610074929337,0.13632608,37661.0,37647.0,0.13656728]
[1610074931343,0.13632608,37661.0,37647.0,0.0002412]
[1610074931743,0.13632608,37661.0,37623.0,0.00838639]
[1610074931944,0.15448721,37648.0,37647.0,0.0002412]
[1610074932244,0.15448721,37648.0,37624.0,0.00024122]
[1610074932445,0.15448721,37648.0,37622.0,0.0847]
[1610074932746,0.15448721,37648.0,37625.0,0.00024125]
[1610074932945,0.15448721,37648.0,37637.0,0.13632608]
[1610074933346,0.15448721,37648.0,37638.0,0.00024125]
[1610074935048,0.15448721,37648.0,37647.0,0.13632608]
[1610074935449,0.15448721,37648.0,37647.0,0.13656727]
[1610074937351,0.15448721,37648.0,37647.0,0.13632608]
[1610074937553,0.15448721,37648.0,37647.0,0.13656723]
[1610074940757,0.09884,37656.0,37647.0,0.13656723]
[1610074940955,0.09884,37656.0,37655.0,0.13632608]
[1610074941556,0.09884,37656.0,37655.0,0.13656718]
[1610074941755,0.09884,37656.0,37655.0,0.14470747]
[1610074941956,0.09884,37656.0,37655.0,0.13656718]
[1610074942957,0.23516608,37656.0,37655.0,0.0002411]
[1610074943357,0.23516608,37656.0,37645.0,0.00024117]
[1610074944156,0.23516608,37656.0,37645.0,0.00838502]
[1610074945158,0.09884,37656.0,37655.0,0.13632608]
[1610074945558,0.5769,37705.0,37655.0,0.13632608]
[1610074945758,3.5712,37729.0,37655.0,0.14471028]
[1610074945958,0.01556551,37726.0,37656.0,0.00838253]
[1610074946358,3.5712,37729.0,37656.0,0.00838253]
[1610074947058,0.13632608,37673.0,37669.0,0.13632608]
[1610074947460,0.24280608,37673.0,37670.0,0.00024108]
[1610074947658,0.10648,37673.0,37670.0,0.00024108]
[1610074948258,0.10648,37673.0,37670.0,0.0083815]
[1610074948859,0.10648,37673.0,37646.0,0.03488753]
[1610074949058,0.10648,37673.0,37672.0,0.13632608]
[1610074949659,0.10648,37673.0,37672.0,0.14470691]
[1610074952462,3.5712,37729.0,37672.0,0.14470691]
[1610074952661,0.2969,37730.0,37672.0,0.14470691]
[1610074953062,0.2969,37730.0,37703.0,0.13632608]
[1610074953664,0.01568687,37742.0,37704.0,0.00024094]
[1610074954068,0.01569412,37747.0,37700.0,3.126]
[1610074954264,0.10897,37707.0,37700.0,3.126]
[1610074954664,0.10897,37707.0,37701.0,0.00837382]
[1610074954867,0.2873899,37762.0,37701.0,0.00837382]
[1610074955065,0.2873899,37762.0,37702.0,3.2177]
[1610074955265,0.2717,37762.0,37702.0,3.2177]
[1610074955466,0.4818428,37765.0,37703.0,0.0083729]
[1610074955666,0.57872115,37767.0,37703.0,0.0348512]
[1610074955667,0.0350496,37767.0,37703.0,0.0348512]
[1610074956066,0.0350496,37767.0,37703.0,0.0083729]
[1610074956267,0.01936721,37767.0,37704.0,0.00836893]
[1610074956468,0.01936721,37767.0,37703.0,0.03483641]
[1610074956670,0.01936721,37767.0,37705.0,0.00836851]
[1610074956870,0.10528721,37767.0,37705.0,0.00836851]
[1610074957070,0.10528721,37767.0,37748.0,0.13632608]
[1610074957669,0.10528721,37767.0,37749.0,0.00024063]
[1610074958071,0.10528721,37767.0,37737.0,0.00024063]
[1610074958269,0.10528721,37767.0,37711.0,0.0863]
[1610074958671,0.10528721,37767.0,37712.0,0.00836679]
[1610074959070,0.10528721,37767.0,37720.0,0.13632608]
[1610074959269,0.10528721,37767.0,37703.0,0.00836696]
[1610074959473,0.10528721,37767.0,37713.0,0.00024068]
[1610074959670,0.10528721,37767.0,37714.0,0.4569]
[1610074960171,0.10528721,37767.0,37715.0,0.00836702]
[1610074961074,0.13632608,37732.0,37729.0,0.13632608]
[1610074961272,0.24478608,37732.0,37729.0,0.13632608]
[1610074961472,0.10846,37732.0,37729.0,0.13632608]
[1610074963075,0.13632608,37730.0,37729.0,0.13632608]
[1610074963275,0.10846,37732.0,37729.0,0.13632608]
[1610074964478,0.10528721,37767.0,37731.0,3.6683]
[1610074964880,0.10528721,37767.0,37732.0,0.00836251]
[1610074965080,0.10528721,37767.0,37766.0,0.13632608]
[1610074965481,0.10528721,37767.0,37766.0,3.47812608]
[1610074965682,0.10528721,37767.0,37766.0,3.48648226]
[1610074966283,0.10528721,37767.0,37766.0,3.51290734]
[1610074966681,0.10528721,37767.0,37766.0,0.17110734]
[1610074967082,0.10528721,37767.0,37766.0,0.14468226]
[1610074968085,0.10528721,37767.0,37766.0,0.13656644]
[1610074968485,0.01936721,37826.0,37766.0,0.13656644]
[1610074968889,0.01936721,37826.0,37785.0,4.323]
[1610074969089,0.01936721,37826.0,37825.0,0.13632608]
[1610074969692,0.01936721,37826.0,37770.0,0.09217]
[1610074969894,0.15211721,37826.0,37770.0,0.09217]
[1610074970286,0.15211721,37826.0,37771.0,0.00025482]
[1610074970689,0.15211721,37826.0,37758.0,4.163]
[1610074970690,0.15211721,37826.0,37759.0,0.00025488]
[1610074971092,0.15211721,37826.0,37795.0,0.13632608]
[1610074971093,0.13632608,37803.0,37795.0,0.13632608]
[1610074971291,0.12752,37803.0,37795.0,0.13632608]
[1610074971491,0.12752,37803.0,37796.0,0.00025481]
[1610074973096,0.12752,37803.0,37802.0,0.13632608]
[1610074975096,0.12752,37803.0,37797.0,0.13632608]
[1610074976297,0.15211721,37826.0,37797.0,0.13632608]
[1610074976498,0.15211721,37826.0,37797.0,0.62862608]
[1610074977200,0.15211721,37826.0,37825.0,0.13632608]
[1610074981204,0.15211721,37826.0,37825.0,0.13658061]
[1610074981407,0.13632608,37863.0,37825.0,0.13658061]
[1610074981805,0.13632608,37863.0,37826.0,0.00025447]
[1610074983108,0.13632608,37863.0,37857.0,0.13632608]
[1610074983307,0.13632608,37863.0,37835.0,3.7596]
[1610074983506,0.22069608,37863.0,37835.0,3.7596]
[1610074984307,0.22069608,37863.0,37710.0,2.00017808]
[1610074984510,0.22069608,37863.0,37785.0,3.3337]
[1610074984707,0.22069608,37863.0,37798.0,0.00025454]
[1610074985108,0.08437,37863.0,37836.0,0.13632608]
[1610074985310,0.08437,37863.0,37798.0,0.00025454]
[1610074985508,0.08437,37863.0,37785.0,3.3337]
[1610074985709,0.08437,37863.0,37798.0,0.01193991]
[1610074985908,0.08437,37863.0,37798.0,0.14454991]
[1610074986309,0.08437,37863.0,37799.0,0.01194047]
[1610074987111,0.13632608,37849.0,37833.0,0.13632608]
[1610074987511,0.25243608,37849.0,37834.0,0.00025461]
[1610074987912,0.25243608,37849.0,37807.0,0.00025461]
[1610074988313,0.25243608,37849.0,37807.0,0.01194263]
[1610074988914,3.7647,37848.0,37807.0,0.00025461]
[1610074989120,0.13632608,37808.0,37796.0,0.13632608]
[1610074989318,0.13632608,37808.0,37768.0,0.10177]
[1610074989516,0.26318608,37808.0,37769.0,0.01194542]
[1610074990318,0.26318608,37808.0,37767.0,0.01194825]
[1610074990518,0.26318608,37808.0,37770.0,0.01194922]
[1610074990718,0.26318608,37808.0,37768.0,0.01195088]
[1610074991118,0.26318608,37808.0,37755.0,0.09366]
[1610074991119,0.4986,37807.0,37771.0,0.01195072]
[1610074991318,0.4986,37807.0,37769.0,0.01195234]
[1610074991519,0.12686,37808.0,37772.0,0.01195584]
[1610074991718,3.8003,37799.0,37739.0,0.03584624]
[1610074991920,3.9145,37799.0,37739.0,0.09939006]
[1610074992119,0.1142,37799.0,37721.0,0.11138169]
[1610074992323,4.2991,37788.0,37740.0,0.01195855]
[1610074992522,4.42763,37788.0,37740.0,0.01195855]
[1610074992721,0.12853,37788.0,37722.0,0.01195723]
[1610074992921,0.12853,37788.0,37741.0,0.01195771]
[1610074993123,0.13632608,37786.0,37771.0,0.13632608]
[1610074993522,0.13632608,37786.0,37742.0,0.01195534]
[1610074993721,0.13632608,37786.0,37715.0,0.09468]
[1610074994121,0.4519,37785.0,37716.0,0.01195593]
[1610074994322,0.13632608,37786.0,37716.0,0.01195593]
[1610074994522,3.074,37785.0,37716.0,0.01195593]
[1610074995124,0.13632608,37750.0,37737.0,0.13632608]
[1610074995324,0.25189608,37750.0,37737.0,0.13632608]
[1610074995523,0.25189608,37750.0,37738.0,0.01195819]
[1610074996927,0.25189608,37750.0,37705.0,0.01196073]
[1610074997127,0.25189608,37750.0,37739.0,0.01196117]
[1610074997326,0.11557,37750.0,37706.0,0.01196186]
[1610074997727,0.11557,37750.0,37740.0,0.01196263]
[1610074997927,0.11557,37750.0,37707.0,0.01196288]
[1610074998126,0.11557,37750.0,37741.0,0.01196414]
[1610074998526,0.11557,37750.0,37708.0,0.01196512]
[1610074998728,0.11557,37750.0,37742.0,0.01196495]
[1610074998930,0.11557,37750.0,37709.0,0.01196461]
[1610074999128,0.11557,37750.0,37743.0,0.01196363]
[1610074999529,0.11557,37750.0,37727.0,0.13632608]
[1610074999728,0.11557,37750.0,37744.0,0.01196273]
[1610074999929,0.11557,37750.0,37728.0,0.0119624]
[1610075000329,0.12853,37788.0,37728.0,0.0119624]
[1610075000531,0.11963,37750.0,37728.0,0.0119624]
[1610075001330,0.11963,37750.0,37749.0,0.13632608]
[1610075001830,0.11963,37750.0,37749.0,0.14828331]
[1610075003431,0.13632608,37754.0,37749.0,0.14828331]
[1610075004031,0.13632608,37754.0,37750.0,0.01195444]
[1610075004831,0.13632608,37754.0,37713.0,0.2717]
[1610075005031,0.26737608,37754.0,37714.0,0.01195899]
[1610075005231,0.13105,37754.0,37714.0,0.01195899]
[1610075005631,0.13105,37754.0,37713.0,0.01196054]
[1610075005831,0.13105,37754.0,37715.0,0.01196038]
[1610075006031,0.13105,37754.0,37714.0,0.01196017]
[1610075006434,0.13105,37754.0,37716.0,0.01196032]
[1610075006636,0.13105,37754.0,37715.0,0.01196079]
[1610075006834,0.13105,37754.0,37712.0,0.10897]
[1610075006835,0.13105,37754.0,37717.0,0.01196108]
[1610075007136,0.13105,37754.0,37716.0,0.01196054]
[1610075007335,0.13105,37754.0,37722.0,0.13632608]
[1610075007535,0.13105,37754.0,37718.0,0.01196119]
[1610075007735,0.13105,37754.0,37717.0,0.01196215]
[1610075007936,0.13105,37754.0,37719.0,0.01196221]
[1610075008135,0.13105,37754.0,37718.0,0.01196229]
[1610075008336,3.2531,37744.0,37718.0,0.01196229]
[1610075008538,3.36023,37744.0,37720.0,0.0119627]
[1610075008735,3.36023,37744.0,37719.0,0.01196391]
[1610075008936,3.36023,37744.0,37721.0,0.01196439]
[1610075009336,0.13632608,37722.0,37705.0,0.13632608]
[1610075009535,0.23009608,37722.0,37693.0,0.12525]
[1610075009736,0.23009608,37722.0,37706.0,0.01196578]
[1610075010137,0.23009608,37722.0,37694.0,0.01196574]
[1610075010336,0.23009608,37722.0,37707.0,0.01196648]
[1610075010539,0.23009608,37722.0,37695.0,0.01196652]
[1610075010738,0.23009608,37722.0,37708.0,0.01196689]
[1610075011136,0.23009608,37722.0,37686.0,0.01196681]
[1610075011337,0.13632608,37703.0,37694.0,0.13632608]
[1610075011938,0.13632608,37703.0,37695.0,0.01196714]
[1610075012739,0.13632608,37703.0,37686.0,0.01196928]
[1610075012941,0.13632608,37703.0,37674.0,0.11223]
[1610075012942,0.13632608,37703.0,37696.0,0.01196885]